lending/lending_fUSD_20240207
["ID","MTS","AMOUNT","RATE_DAILY","PERIOD"]
[313438772,1707347478627,-500.0,0.00049589,61]
[313438773,1707347478637,-1030.36,0.00049589,61]
[313438774,1707347478646,-1681.21,0.00049589,61]
[313438775,1707347478884,-903.74,0.00049589,61]
[313438776,1707347478895,-500.0,0.00049589,14]
[313438777,1707347478906,-500.0,0.00049589,61]
[313438778,1707347478916,-2159.11,0.00049589,61]
[313438779,1707347478925,-500.0,0.00049589,61]
[313438780,1707347478934,-1445.95,0.00049589,61]
[313438781,1707347478942,-500.0,0.00049589,61]
[313438782,1707347478952,-500.0,0.00049589,61]
[313438783,1707347478961,-500.0,0.00049589,61]
[313438784,1707347478970,-150.62929888,0.00049589,61]
[313438785,1707347478979,-4095.08,0.00049589,61]
[313438786,1707347478989,-780.28,0.00049589,61]
[313438787,1707347478998,-500.0,0.00049589,61]
[313438788,1707347479011,-2802.17,0.00049589,61]
[313438789,1707347479020,-2677.59,0.00049589,61]
[313438790,1707347479029,-919.02,0.00049589,61]
[313438791,1707347479038,-647.45,0.00049589,61]
[313438792,1707347479047,-1279.22,0.00049589,61]
[313438793,1707347479057,-500.0,0.00049589,61]
[313438794,1707347479066,-500.0,0.00049589,61]
[313438795,1707347479075,-362.44147624,0.00049589,61]
[313438796,1707347479085,-1317.09,0.00049589,61]
[313438797,1707347479095,-2242.72,0.00049589,61]
[313438798,1707347479104,-500.0,0.00049589,61]
[313438799,1707347479115,-619.03832108,0.00049589,61]
[313438800,1707347479124,-500.0,0.00049589,61]
[313438801,1707347479134,-3912.73,0.00049589,61]
[313438802,1707347479143,-1013.38,0.00049589,61]
[313438803,1707347479153,-500.0,0.00049589,61]
[313438804,1707347479162,-853.01,0.00049589,61]
[313438805,1707347479172,-574.45,0.00049589,61]
[313438806,1707347479182,-923.22,0.00049589,61]
[313438807,1707347479191,-6550.2,0.00049589,61]
[313438808,1707347479200,-540.13,0.00049589,61]
[313438809,1707347479209,-500.0,0.00049589,61]
[313438810,1707347479219,-1557.78,0.00049589,61]
[313438811,1707347479228,-710.77,0.00049589,61]
[313438812,1707347479238,-644.66,0.00049589,61]
[313438813,1707347479247,-3054.67,0.00049589,61]
[313438814,1707347479257,-500.0,0.00049589,61]
[313438815,1707347479266,-500.0,0.00049589,61]
[313438816,1707347479276,-2129.53,0.00049589,61]
[313438817,1707347479285,-1100.72,0.00049589,61]
[313438818,1707347479294,-500.0,0.00049589,61]
[313438819,1707347479303,-500.0,0.00049589,61]
[313438820,1707347479312,-792.43,0.00049589,61]
[313438821,1707347479322,-1217.52,0.00049589,61]
[313438822,1707347479331,-599.03,0.00049589,61]
[313438823,1707347479340,-500.0,0.00049589,61]
[313438824,1707347479349,-500.0,0.00049589,61]
[313438825,1707347479359,-658.54,0.00049589,61]
[313438826,1707347479368,-584.92,0.00049589,61]
[313438827,1707347479377,-500.0,0.00049589,61]
[313438828,1707347479386,-4664.1,0.00049589,61]
[313438829,1707347479396,-500.0,0.00049589,61]
[313438830,1707347479405,-1691.0,0.00049589,61]
[313438831,1707347479415,-4011.67,0.00049589,61]
[313438832,1707347479424,-500.0,0.00049589,61]
[313438833,1707347479438,-516.54,0.00049589,61]
[313438834,1707347479447,-425.49146965,0.00049589,61]
[313438835,1707347479456,-500.0,0.00049589,10]
[313438836,1707347479465,-500.0,0.00049589,61]
[313438837,1707347479475,-500.0,0.00049589,61]
[313438838,1707347479484,-693.23,0.00049589,61]
[313438839,1707347479493,-500.0,0.00049589,61]
[313438840,1707347479504,-1068.88,0.00049589,61]
[313438841,1707347479513,-500.0,0.00049589,61]
[313438842,1707347479522,-500.95514358,0.00049589,61]
[313438843,1707347479532,-1362.68,0.00049589,61]
[313438844,1707347479541,-1097.67,0.00049589,61]
[313438845,1707347479551,-500.0,0.00049589,61]
[313438846,1707347479560,-1113.81,0.00049589,61]
[313438847,1707347479569,-2061.63,0.00049589,61]
[313438848,1707347479577,-1083.69,0.00049589,61]
[313438849,1707347479589,-3514.24,0.00049589,61]
[313438850,1707347479598,-2177.25,0.00049589,61]
[313438851,1707347479607,-2051.15,0.00049589,61]
[313438852,1707347479617,-730.13,0.00049589,61]
[313438853,1707347479626,-721.96,0.00049589,61]
[313438854,1707347479635,-500.0,0.00049589,61]
[313438855,1707347479644,-4697.13,0.00049589,61]
[313438856,1707347479654,-500.0,0.00049589,61]
[313438857,1707347479664,-793.39,0.00049589,61]
[313438858,1707347479673,-500.0,0.00049589,61]
[313438859,1707347479682,-580.99,0.00049589,61]
[313438860,1707347479691,-2197.24,0.00049589,5]
[313438861,1707347479701,-500.0,0.00049589,61]
[313438862,1707347479710,-500.0,0.00049589,61]
[313438863,1707347479719,-500.0,0.00049589,61]
[313438864,1707347479729,-1862.94,0.00049589,61]
[313438865,1707347479739,-588.47,0.00049589,61]
[313438866,1707347479749,-1227.91,0.00049589,61]
[313438867,1707347479758,-20446.4,0.00049589,61]
[313438868,1707347479767,-500.0,0.00049589,61]
[313438869,1707347479776,-1588.37,0.00049589,61]
[313438870,1707347479785,-722.47,0.00049589,61]
[313438871,1707347479794,-1877.02,0.00049589,61]
[313438872,1707347479802,-3030.01,0.00049589,61]
[313438873,1707347479812,-776.09,0.00049589,61]
[313438874,1707347479821,-500.0,0.00049589,61]
[313438875,1707347479831,-1869.11,0.00049589,61]
[313438876,1707347479840,-946.84,0.00049589,61]
[313438877,1707347479850,-564.93,0.00049589,61]
[313438878,1707347479859,-500.0,0.00049589,61]
[313438879,1707347479868,-2167.09,0.00049589,61]
[313438880,1707347479877,-3617.12,0.00049589,61]
[313438881,1707347479886,-2263.07,0.00049589,61]
[313438882,1707347479896,-4353.98,0.00049589,61]
[313438883,1707347479905,-2623.66,0.00049589,61]
[313438884,1707347479914,-500.0,0.00049589,61]
[313438885,1707347479924,-500.0,0.00049589,61]
[313438886,1707347479933,-503.87,0.00049589,61]
[313438887,1707347479943,-7953.73,0.00049589,61]
[313438888,1707347479952,-500.0,0.00049589,61]
[313438889,1707347479962,-500.0,0.00049589,61]
[313438890,1707347479971,-558.97,0.00049589,61]
[313438891,1707347479980,-554.56324324,0.00049589,61]
[313438892,1707347479990,-1362.09,0.00049589,61]
[313438893,1707347480001,-500.0,0.00049589,61]
[313438894,1707347480014,-2251.93,0.00049589,61]
[313438895,1707347480023,-500.0,0.00049589,61]
[313438896,1707347480033,-6890.2,0.00049589,61]
[313438897,1707347480044,-500.0,0.00049589,61]
[313438898,1707347480053,-1574.63,0.00049589,61]
[313438899,1707347480063,-500.0,0.00049589,61]
[313438900,1707347480073,-8517.11,0.00049589,61]
[313438901,1707347480083,-2715.1,0.00049589,61]
[313438902,1707347480093,-500.0,0.00049589,61]
[313438903,1707347480102,-665.96,0.00049589,61]
[313438904,1707347480112,-512.84424037,0.00049589,61]
[313438905,1707347480122,-1464.8,0.00049589,61]
[313438906,1707347480132,-500.0,0.00049589,61]
[313438907,1707347480142,-500.0,0.00049589,61]
[313438908,1707347480152,-1000.0,0.00049589,30]
[313438909,1707347480162,-829.79,0.00049589,61]
[313438910,1707347480172,-5217.53,0.00049589,61]
[313438911,1707347480182,-2214.71,0.00049589,61]
[313438912,1707347480192,-500.0,0.00049589,61]
[313438913,1707347480202,-500.0,0.00049589,61]
[313438914,1707347480211,-1346.51,0.00049589,61]
[313438915,1707347480222,-500.0,0.00049589,61]
[313438916,1707347480232,-1193.63,0.00049589,61]
[313438917,1707347480242,-500.0,0.00049589,61]
[313438918,1707347480253,-500.0,0.00049589,61]
[313438919,1707347480262,-616.23,0.00049589,61]
[313438920,1707347480272,-1510.47,0.00049589,61]
[313438921,1707347480283,-545.81,0.00049589,61]
[313438922,1707347480293,-500.0,0.00049589,61]
[313438923,1707347480303,-5039.71,0.00049589,61]
[313438924,1707347480314,-3535.77,0.00049589,61]
[313438925,1707347480324,-500.0,0.00049589,61]
[313438926,1707347480335,-1475.14,0.00049589,61]
[313438927,1707347480345,-4353.36,0.00049589,61]
[313438928,1707347480356,-1419.63,0.00049589,61]
[313438929,1707347480367,-1487.8,0.00049589,61]
[313438930,1707347480378,-500.0,0.00049589,61]
[313438931,1707347480388,-2579.11,0.00049589,61]
[313438932,1707347480398,-500.0,0.00049589,61]
[313438933,1707347480410,-698.88,0.00049589,61]
[313438934,1707347480420,-841.24,0.00049589,61]
[313438935,1707347480430,-581.08,0.00049589,61]
[313438936,1707347480441,-500.0,0.00049589,61]
[313438937,1707347480450,-500.0,0.00049589,61]
[313438938,1707347480460,-500.0,0.00049589,61]
[313438939,1707347480470,-500.0,0.00049589,61]
[313438940,1707347480480,-1787.41,0.00049589,61]
[313438941,1707347480491,-500.0,0.00049589,61]
[313438942,1707347480500,-500.0,0.00049589,61]
[313438943,1707347480510,-550.88,0.00049589,61]
[313438944,1707347480519,-2626.41,0.00049589,61]
[313438945,1707347480529,-500.0,0.00049589,61]
[313438946,1707347480539,-531.70709743,0.00049589,61]
[313438947,1707347480549,-1919.09,0.00049589,61]
[313438948,1707347480558,-821.13,0.00049589,61]
[313438949,1707347480569,-2528.01,0.00049589,61]
[313438950,1707347480579,-500.0,0.00049589,61]
[313438951,1707347480588,-619.34848387,0.00049589,61]
[313438952,1707347480598,-2658.82,0.00049589,61]
[313438953,1707347480608,-706.32,0.00049589,61]
[313438954,1707347480618,-500.0,0.00049589,61]
[313438955,1707347480628,-732.42,0.00049589,61]
[313438956,1707347480638,-500.0,0.00049589,61]
[313438957,1707347480647,-1514.38,0.00049589,61]
[313438958,1707347480656,-500.0,0.00049589,61]
[313438959,1707347480666,-500.0,0.00049589,61]
[313438960,1707347480676,-500.0,0.00049589,61]
[313438961,1707347480685,-754.94,0.00049589,61]
[313438962,1707347480695,-500.0,0.00049589,61]
[313438963,1707347480704,-500.0,0.00049589,61]
[313438964,1707347480715,-1142.32,0.00049589,61]
[313438965,1707347480725,-866.36,0.00049589,61]
[313438966,1707347480735,-500.0,0.00049589,61]
[313438967,1707347480745,-2753.05,0.00049589,61]
[313438968,1707347480754,-4003.88,0.00049589,61]
[313438969,1707347480764,-5577.07,0.00049589,61]
[313438970,1707347480773,-1625.48,0.00049589,61]
[313438971,1707347480783,-907.29,0.00049589,61]
[313438972,1707347480793,-732.93,0.00049589,61]
[313438973,1707347480802,-500.0,0.00049589,61]
[313438974,1707347480811,-500.0,0.00049589,2]
[313438975,1707347480820,-594.40692789,0.00049589,61]
[313438976,1707347480829,-500.0,0.00049589,14]
[313438977,1707347480839,-432.0,0.0004959,2]
[313438978,1707347480848,-161.83709875,0.00049592,11]
[313438979,1707347480858,-600.65,0.000496,7]
[313438980,1707347480867,-600.65,0.000496,7]
[313438981,1707347480876,-267.69,0.000496,7]
[313438982,1707347480885,-150.0,0.000496,20]
[313438983,1707347480895,-156.13337094,0.00049622,26]
[313438984,1707347480904,-1063.09320401,0.00049625,26]
[313438985,1707347480913,-6873.32235815,0.00049635,2]
[313438986,1707347480923,-436.46866912,0.00049645,46]
[313438987,1707347480932,-3692.62398134,0.0004968,120]
[313438988,1707347480941,-1063.09320401,0.00049683,26]
[313438989,1707347480951,-5000.0,0.0004969,120]
[313438990,1707347480961,-438.0,0.0004969,2]
[313438991,1707347480970,-287.31149563,0.000497,30]
[313438992,1707347480980,-267.7,0.000497,7]
[313438993,1707347480990,-101142.87,0.000497,35]
[313438994,1707347481005,-500.0,0.00049726,30]
[313438995,1707347481015,-329.59877297,0.00049726,31]
[313438996,1707347481024,-500.0,0.00049726,30]
[313438997,1707347481034,-1063.09320401,0.00049742,26]
[313438998,1707347481047,-2000.0,0.00049748,31]
[313438999,1707347481057,-685.25643206,0.00049763,2]
[313439000,1707347481066,-4207.38020631,0.00049763,2]
[313439001,1707347481076,-1704.88003916,0.00049763,2]
[313439002,1707347481090,-2629.80869537,0.00049763,2]
[313439003,1707347481100,-1208.0,0.00049764,30]
[313439004,1707347481109,-200.73706867,0.00049766,14]
[313439005,1707347481121,-200.73706867,0.00049766,14]
[313439006,1707347481131,-200.73706867,0.00049766,14]
[313439007,1707347481141,-200.73706867,0.00049766,14]
[313439008,1707347481151,-200.73706867,0.00049766,14]
[313439009,1707347481161,-200.73706867,0.00049766,14]
[313439010,1707347481171,-200.73706867,0.00049766,14]
[313439011,1707347481182,-200.73706867,0.00049766,14]
[313439012,1707347481192,-200.73706867,0.00049766,14]
[313439013,1707347481202,-200.73706867,0.00049766,14]
[313439014,1707347481213,-200.73706867,0.00049766,14]
[313439015,1707347481223,-200.73706867,0.00049766,14]
[313439016,1707347481233,-200.73706867,0.00049766,14]
[313439017,1707347481243,-200.73706867,0.00049766,14]
[313439018,1707347481253,-200.73706867,0.00049766,14]
[313439019,1707347481262,-200.73706867,0.00049766,14]
[313439020,1707347481272,-200.73706867,0.00049766,14]
[313439021,1707347481282,-200.73706867,0.00049766,14]
[313439022,1707347481291,-200.73706867,0.00049766,14]
[313439023,1707347481301,-200.73,0.00049766,14]
[313439024,1707347481311,-802.94827469,0.00049766,14]
[313439025,1707347481321,-802.94827469,0.00049766,14]
[313439026,1707347481330,-802.94827469,0.00049766,14]
[313439027,1707347481341,-802.94827469,0.00049766,14]
[313439028,1707347481351,-802.94827469,0.00049766,14]
[313439029,1707347481361,-802.94827469,0.00049766,14]
[313439030,1707347481373,-802.94827469,0.00049766,14]
[313439031,1707347481382,-802.94827469,0.00049766,14]
[313439032,1707347481392,-802.94827469,0.00049766,14]
[313439033,1707347481402,-802.94827469,0.00049766,14]
[313439034,1707347481410,-802.94827469,0.00049766,14]
[313439035,1707347481420,-802.94827469,0.00049766,14]
[313439036,1707347481430,-802.94827469,0.00049766,14]
[313439037,1707347481440,-802.94827469,0.00049766,14]
[313439038,1707347481449,-294.29357946,0.00049766,14]
[313439039,1707347481460,-294.29357946,0.00049766,14]
[313439040,1707347481471,-294.29357946,0.00049766,14]
[313439041,1707347481481,-294.29357946,0.00049766,14]
[313439042,1707347481491,-294.29357946,0.00049766,14]
[313439043,1707347481500,-294.29357946,0.00049766,14]
[313439044,1707347481510,-294.29357946,0.00049766,14]
[313439045,1707347481519,-294.29357946,0.00049766,14]
[313439046,1707347481529,-294.29357946,0.00049766,14]
[313439047,1707347481538,-294.29357946,0.00049766,14]
[313439048,1707347481548,-294.29357946,0.00049766,14]
[313439049,1707347481557,-294.29357946,0.00049766,14]
[313439050,1707347481566,-294.29357946,0.00049766,14]
[313439051,1707347481576,-294.29357946,0.00049766,14]
[313439052,1707347481586,-294.29357946,0.00049766,14]
[313439053,1707347481595,-294.29357946,0.00049766,14]
[313439054,1707347481605,-294.29357946,0.00049766,14]
[313439055,1707347481615,-294.29357946,0.00049766,14]
[313439056,1707347481624,-294.29357946,0.00049766,14]
[313439057,1707347481634,-294.29,0.00049766,14]
[313439058,1707347481644,-1177.17431784,0.00049766,14]
[313439059,1707347481653,-1177.17431784,0.00049766,14]
[313439060,1707347481662,-1177.17431784,0.00049766,14]
[313439061,1707347481672,-1177.17431784,0.00049766,14]
[313439062,1707347481681,-1177.17431784,0.00049766,14]
[313439063,1707347481691,-1177.17431784,0.00049766,14]
[313439064,1707347481700,-1177.17431784,0.00049766,14]
[313439065,1707347481709,-1177.17431784,0.00049766,14]
[313439066,1707347481719,-1177.17431784,0.00049766,14]
[313439067,1707347481728,-1177.17431784,0.00049766,14]
[313439068,1707347481738,-1177.17431784,0.00049766,14]
[313439069,1707347481747,-1177.17431784,0.00049766,14]
[313439070,1707347481756,-1177.17431784,0.00049766,14]
[313439071,1707347481766,-1177.17431784,0.00049766,14]
[313439072,1707347481967,-354.46579587,0.00049766,14]
[313439073,1707347481977,-354.46579587,0.00049766,14]
[313439074,1707347481986,-354.46579587,0.00049766,14]
[313439075,1707347481996,-354.46579587,0.00049766,14]
[313439076,1707347482007,-354.46579587,0.00049766,14]
[313439077,1707347482016,-354.46579587,0.00049766,14]
[313439078,1707347482026,-354.46579587,0.00049766,14]
[313439079,1707347482035,-354.46579587,0.00049766,14]
[313439080,1707347482045,-354.46579587,0.00049766,14]
[313439081,1707347482055,-354.46579587,0.00049766,14]
[313439082,1707347482064,-354.46579587,0.00049766,14]
[313439083,1707347482074,-354.46579587,0.00049766,14]
[313439084,1707347482083,-354.46579587,0.00049766,14]
[313439085,1707347482095,-354.46579587,0.00049766,14]
[313439086,1707347482104,-354.46579587,0.00049766,14]
[313439087,1707347482114,-354.46579587,0.00049766,14]
[313439088,1707347482123,-354.46579587,0.00049766,14]
[313439089,1707347482131,-354.46579587,0.00049766,14]
[313439090,1707347482141,-354.46579587,0.00049766,14]
[313439091,1707347482150,-354.46,0.00049766,14]
[313439092,1707347482160,-1417.8631835,0.00049766,14]
[313439093,1707347482169,-1417.8631835,0.00049766,14]
[313439094,1707347482179,-1417.8631835,0.00049766,14]
[313439095,1707347482189,-1417.8631835,0.00049766,14]
[313439096,1707347482199,-1417.8631835,0.00049766,14]
[313439097,1707347482209,-1417.8631835,0.00049766,14]
[313439098,1707347482219,-1417.8631835,0.00049766,14]
[313439099,1707347482229,-1417.8631835,0.00049766,14]
[313439100,1707347482239,-1417.8631835,0.00049766,14]
[313439101,1707347482249,-1417.8631835,0.00049766,14]
[313439102,1707347482258,-1417.8631835,0.00049766,14]
[313439103,1707347482269,-1417.8631835,0.00049766,14]
[313439104,1707347482278,-1417.8631835,0.00049766,14]
[313439105,1707347482288,-1417.8631835,0.00049766,14]
[313439106,1707347482297,-305.74761311,0.00049766,14]
[313439107,1707347482307,-305.74761311,0.00049766,14]
[313439108,1707347482316,-305.74761311,0.00049766,14]
[313439109,1707347482326,-305.74761311,0.00049766,14]
[313439110,1707347482336,-305.74761311,0.00049766,14]
[313439111,1707347482345,-305.74761311,0.00049766,14]
[313439112,1707347482354,-305.74761311,0.00049766,14]
[313439113,1707347482366,-305.74761311,0.00049766,14]
[313439114,1707347482376,-305.74761311,0.00049766,14]
[313439115,1707347482385,-305.74761311,0.00049766,14]
[313439116,1707347482395,-305.74761311,0.00049766,14]
[313439117,1707347482404,-305.74761311,0.00049766,14]
[313439118,1707347482414,-305.74761311,0.00049766,14]
[313439119,1707347482424,-305.74761311,0.00049766,14]
[313439120,1707347482434,-305.74761311,0.00049766,14]
[313439121,1707347482444,-305.74761311,0.00049766,14]
[313439122,1707347482454,-305.74761311,0.00049766,14]
[313439123,1707347482465,-305.74761311,0.00049766,14]
[313439124,1707347482474,-305.74761311,0.00049766,14]
[313439125,1707347482483,-305.74,0.00049766,14]
[313439126,1707347482492,-1222.99045245,0.00049766,14]
[313439127,1707347482502,-1222.99045245,0.00049766,14]
[313439128,1707347482511,-1222.99045245,0.00049766,14]
[313439129,1707347482521,-1222.99045245,0.00049766,14]
[313439130,1707347482531,-1222.99045245,0.00049766,14]
[313439131,1707347482540,-1222.99045245,0.00049766,14]
[313439132,1707347482549,-1222.99045245,0.00049766,14]
[313439133,1707347482558,-1222.99045245,0.00049766,14]
[313439134,1707347482568,-1222.99045245,0.00049766,14]
[313439135,1707347482577,-1222.99045245,0.00049766,14]
[313439136,1707347482587,-1222.99045245,0.00049766,14]
[313439137,1707347482596,-1222.99045245,0.00049766,14]
[313439138,1707347482605,-1222.99045245,0.00049766,14]
[313439139,1707347482615,-1222.99045245,0.00049766,14]
[313439140,1707347482625,-47634.0,0.0004979,2]
[313439141,1707347482634,-1690.0,0.0004979,2]
[313439142,1707347482644,-500.0,0.00049799,14]
[313439143,1707347482654,-5606.16910859,0.000498,7]
[313439144,1707347482664,-1284.7391,0.000498,7]
[313439145,1707347482673,-1000.0,0.000498,7]
[313439146,1707347482682,-299.06215919,0.000498,120]
[313439147,1707347482692,-496.24072129,0.000498,120]
[313439148,1707347482702,-433.49735482,0.000498,14]
[313439149,1707347482711,-433.49735482,0.000498,14]
[313439150,1707347482721,-433.49735482,0.000498,14]
[313439151,1707347482730,-433.49735482,0.000498,14]
[313439152,1707347482740,-433.49735482,0.000498,14]
[313439153,1707347482750,-433.49735482,0.000498,14]
[313439154,1707347482759,-433.49735482,0.000498,14]
[313439155,1707347482769,-433.49735482,0.000498,14]
[313439156,1707347482779,-433.49735482,0.000498,14]
[313439157,1707347482789,-433.49735482,0.000498,14]
[313439158,1707347482798,-433.49735482,0.000498,14]
[313439159,1707347482808,-433.49735482,0.000498,14]
[313439160,1707347482819,-433.49735482,0.000498,14]
[313439161,1707347482828,-433.49735482,0.000498,14]
[313439162,1707347482838,-433.49735482,0.000498,14]
[313439163,1707347482849,-433.49735482,0.000498,14]
[313439164,1707347482859,-433.49735482,0.000498,14]
[313439165,1707347482869,-433.49735482,0.000498,14]
[313439166,1707347482878,-433.49735482,0.000498,14]
[313439167,1707347482888,-433.49,0.000498,14]
[313439168,1707347482897,-1733.98941929,0.000498,14]
[313439169,1707347482906,-1733.98941929,0.000498,14]
[313439170,1707347482916,-1733.98941929,0.000498,14]
[313439171,1707347482926,-1733.98941929,0.000498,14]
[313439172,1707347482936,-1733.98941929,0.000498,14]
[313439173,1707347482946,-1733.98941929,0.000498,14]
[313439174,1707347482956,-1733.98941929,0.000498,14]
[313439175,1707347482966,-1733.98941929,0.000498,14]
[313439176,1707347482976,-1733.98941929,0.000498,14]
[313439177,1707347482986,-1733.98941929,0.000498,14]
[313439178,1707347482996,-1733.98941929,0.000498,14]
[313439179,1707347483008,-1733.98941929,0.000498,14]
[313439180,1707347483018,-1733.98941929,0.000498,14]
[313439181,1707347483027,-1733.98941929,0.000498,14]
[313439182,1707347483037,-1063.09320401,0.000498,26]
[313439183,1707347483047,-156.13337094,0.000498,26]
[313439184,1707347483056,-150.0,0.000498,20]
[313439185,1707347483067,-8779.13328641,0.000498,2]
[313439186,1707347483077,-436.46866912,0.000498,46]
[313439187,1707347483088,-153.16703045,0.00049813,43]
[313439188,1707347483099,-312.08363239,0.00049815,7]
[313439189,1707347483109,-125908.4533609,0.00049829,2]
[313439190,1707347483119,-3840.6006308,0.00049829,2]
[313439191,1707347483128,-6234.9275893,0.00049829,2]
[313439192,1707347483138,-6738.1123926,0.00049829,2]
[313439193,1707347483148,-1554.9178967,0.00049829,2]
[313439194,1707347483157,-1000.0,0.0004983,4]
[313439195,1707347483168,-150.0,0.00049862,30]
[313439196,1707347483178,-150.0,0.00049862,9]
[313439197,1707347483188,-2499.90669383,0.00049863,120]
[313439198,1707347483198,-500.0,0.00049863,40]
[313439199,1707347483207,-500.0,0.00049863,30]
[313439200,1707347483217,-380.578237,0.00049863,61]
[313439201,1707347483227,-500.0,0.00049863,30]
[313439202,1707347483237,-500.0,0.00049863,61]
[313439203,1707347483246,-201.50205816,0.00049863,61]
[313439204,1707347483256,-500.0,0.00049863,61]
[313439205,1707347483265,-500.0,0.00049863,61]
[313439206,1707347483275,-497.0,0.00049863,61]
[313439207,1707347483285,-500.0,0.00049863,61]
[313439208,1707347483295,-500.0,0.00049863,61]
[313439209,1707347483305,-488.31235244,0.00049863,61]
[313439210,1707347483314,-500.0,0.00049863,61]
[313439211,1707347483323,-500.0,0.00049863,61]
[313439212,1707347483333,-500.0,0.00049863,61]
[313439213,1707347483342,-500.0,0.00049863,61]
[313439214,1707347483351,-500.0,0.00049863,61]
[313439215,1707347483360,-500.0,0.00049863,61]
[313439216,1707347483370,-643.54,0.00049863,61]
[313439217,1707347483380,-500.0,0.00049863,61]
[313439218,1707347483389,-500.0,0.00049863,61]
[313439219,1707347483398,-500.0,0.00049863,61]
[313439220,1707347483408,-500.0,0.00049863,61]
[313439221,1707347483417,-568.94606469,0.00049863,61]
[313439222,1707347483427,-697.79,0.00049863,61]
[313439223,1707347483436,-500.0,0.00049863,61]
[313439224,1707347483445,-500.0,0.00049863,61]
[313439225,1707347483454,-500.0,0.00049863,61]
[313439226,1707347483464,-500.0,0.00049863,61]
[313439227,1707347483473,-500.0,0.00049863,61]
[313439228,1707347483482,-748.87,0.00049863,61]
[313439229,1707347483491,-500.0,0.00049863,61]
[313439230,1707347483500,-185.63872287,0.00049863,61]
[313439231,1707347483510,-500.0,0.00049863,61]
[313439232,1707347483519,-500.0,0.00049863,61]
[313439233,1707347483528,-742.45,0.00049863,61]
[313439234,1707347483537,-500.0,0.00049863,61]
[313439235,1707347483546,-500.0,0.00049863,61]
[313439236,1707347483555,-512.81557046,0.00049863,61]
[313439237,1707347483564,-502.9111153,0.00049863,61]
[313439238,1707347483573,-500.0,0.00049863,61]
[313439239,1707347483583,-500.0,0.00049863,61]
[313439240,1707347483592,-500.0,0.00049863,61]
[313439241,1707347483601,-500.0,0.00049863,61]
[313439242,1707347483610,-500.0,0.00049863,61]
[313439243,1707347483620,-500.0,0.00049863,61]
[313439244,1707347483629,-500.0,0.00049863,61]
[313439245,1707347483639,-500.0,0.00049863,61]
[313439246,1707347483647,-500.0,0.00049863,61]
[313439247,1707347483657,-500.0,0.00049863,61]
[313439248,1707347483666,-500.0,0.00049863,61]
[313439249,1707347483675,-500.0,0.00049863,61]
[313439250,1707347483684,-500.0,0.00049863,61]
[313439251,1707347483693,-809.45,0.00049863,61]
[313439252,1707347483703,-500.0,0.00049863,61]
[313439253,1707347483713,-500.0,0.00049863,61]
[313439254,1707347483722,-500.0,0.00049863,61]
[313439255,1707347483731,-500.0,0.00049863,61]
[313439256,1707347483740,-195.51268629,0.00049863,61]
[313439257,1707347483750,-221.38438134,0.00049863,61]
[313439258,1707347483759,-536.56,0.00049863,61]
[313439259,1707347483769,-500.0,0.00049863,61]
[313439260,1707347483778,-500.0,0.00049863,61]
[313439261,1707347483787,-500.0,0.00049863,61]
[313439262,1707347483796,-500.0,0.00049863,61]
[313439263,1707347483805,-200.0,0.00049863,61]
[313439264,1707347483814,-500.0,0.00049863,61]
[313439265,1707347483823,-500.0,0.00049863,61]
[313439266,1707347483832,-612.85,0.00049863,61]
[313439267,1707347483842,-500.0,0.00049863,61]
[313439268,1707347483851,-500.0,0.00049863,61]
[313439269,1707347483860,-500.0,0.00049863,61]
[313439270,1707347483870,-500.0,0.00049863,61]
[313439271,1707347483879,-500.0,0.00049863,61]